[Event "1st Bangalore GM-Open-A 2024"]
[Site "Bangalore"]
[Date "2024.01.19"]
[Round "3.34"]
[White "Gugan G"]
[Black "Savchenko, Boris"]
[Result "0-1"]
[ECO "B85"]
[WhiteElo "2164"]
[BlackElo "2489"]
[Annotator "RC"]
[PlyCount "106"]
[EventDate "2024.01.20"]
[EventType "swiss"]
[EventCountry "IND"]
[SourceTitle "playchess.com"]
[Source "ChessBase"]
[SourceQuality "1"]
[TimeControl "5400+30"]

1. e4 {[%emt 0:02:46]} c5 {[%emt 0:03:13]} 2. Nf3 {[%emt 0:02:12]} d6 {[%emt 0:00:46]} 3. d4 {[%emt 0:02:02]} cxd4 {[%emt 0:00:06]} 4. Nxd4 {[%emt 0:00:05]} Nf6 {[%emt 0:00:07]} 5. Nc3 {[%emt 0:00:05]} a6 {[%emt 0:00:06]} 6. Be2 {[%emt 0:00:49]} e6 {[%emt 0:00:09]} 7. f4 {[%emt 0:02:13]} Be7 {[%emt 0:00:44]} 8. O-O {[%emt 0:01:09]} O-O {[%emt 0:00:09]} 9. Be3 {[%emt 0:02:07]} Nc6 {[%emt 0:00:53]} 10. a4 {[%emt 0:03:10]} Re8 {[%emt 0:00:14]} 11. Kh1 {[%emt 0:07:53]} Qc7 {[%emt 0:01:03]} 12. Bf3 {[%emt 0:03:20]} Bf8 {[%emt 0:02:36]} 13. Nb3 {[%emt 0:04:29]} b6 {[%emt 0:00:30]} 14. e5 {[%emt 0:17:08]} dxe5 {[%emt 0:02:27]} 15. fxe5 {[%emt 0:00:05]} Nd7 {[%emt 0:00:13]} 16. Bxc6 {[%emt 0:02:26]} Qxc6 {[%emt 0:00:06]} 17. Nd4 {[%emt 0:00:08]} Qb7 {[%emt 0:00:18]} 18. Rxf7 {[%emt 0:04:45]} Kxf7 {[%emt 0:00:08]} 19. Qh5+ {[%emt 0:00:06]} Kg8 {[%emt 0:00:15]} 20. Qxe8 {[%emt 0:00:48]} Qxg2+ {[%emt 0:00:06]} 21. Kxg2 {[%emt 0:00:04]} Bb7+ {[%emt 0:00:06]} 22. Kg3 {[%emt 0:02:30]} Rxe8 {[%emt 0:00:08]} 23. Bf4 {[%emt 0:00:28]} Bb4 {[%emt 0:09:15]} 24. Na2 {[%emt 0:02:38]} Bc5 {[%emt 0:03:38]} 25. Nb3 {[%emt 0:11:12]} Be7 {[%emt 0:07:21]} 26. Rd1 {[%emt 0:01:48]} Nf8 {[%emt 0:01:17]} 27. Nc3 {[%emt 0:09:23]} Ng6 {[%emt 0:04:06]} 28. Rd7 {[%emt 0:01:29]} Ba8 {[%emt 0:00:59]} 29. Nd4 {[%emt 0:04:52]} h5 {[%emt 0:02:30]} 30. Nce2 {[%emt 0:06:44]} Be4 {[%emt 0:00:22]} 31. Kf2 {[%emt 0:02:07]} Bc5 {[%emt 0:00:22]} 32. Ke1 {[%emt 0:03:34]} Bxd4 {[%emt 0:00:12]} 33. Rxd4 {[%emt 0:00:07]} Bxc2 {[%emt 0:00:06]} 34. Rb4 {[%emt 0:01:17]} Rf8 {[%emt 0:05:50]} 35. Kd2 {[%emt 0:00:57]} a5 {[%emt 0:00:16]} 36. Rd4 {[%emt 0:01:02]} Bb3 {[%emt 0:00:22]} 37. Kc3 {[%emt 0:00:26]} Bd1 {[%emt 0:03:14]} 38. Rxd1 {[%emt 0:00:22]} Nxf4 {[%emt 0:00:05]} 39. Nxf4 {[%emt 0:00:42]} Rxf4 {[%emt 0:00:07]} 40. b3 {[%emt 0:00:30]} Rh4 {[%emt 0:01:42]} 41. Rd2 {[%emt 0:00:29]} Kh7 {[%emt 0:02:44]} 42. Rd6 {[%emt 0:00:31]} Rh3+ {[%emt 0:00:53]} 43. Kc4 {[%emt 0:00:10]} Rxh2 {[%emt 0:00:20]} 44. Rxb6 {[%emt 0:00:11]} h4 {[%emt 0:06:28]} 45. Rxe6 {[%emt 0:00:30]} h3 {[%emt 0:01:30]} 46. Rd6 {[%emt 0:00:28]} Rc2+ {[%emt 0:00:11]} 47. Kb5 {[%emt 0:00:25]} h2 {[%emt 0:00:07]} 48. Rd1 {[%emt 0:00:24]} g5 {[%emt 0:00:29]} 49. b4 {[%emt 0:01:21]} g4 {[%emt 0:00:27]} 50. bxa5 {[%emt 0:00:28]} g3 {[%emt 0:00:10]} 51. a6 {[%emt 0:00:18]} g2 {[%emt 0:00:12]} 52. a7 {[%emt 0:00:34]} Rc8 {[%emt 0:00:15]} 53. Rc1 {[%emt 0:00:42]} Ra8 {[%emt 0:00:09]} 0-1

[Event "1st Bangalore GM-Open-A 2024"]
[Site "Bangalore"]
[Date "2024.01.19"]
[Round "3.35"]
[White "Muthaiah AL"]
[Black "Deshmukh, Anup"]
[Result "1-0"]
[ECO "A45"]
[WhiteElo "2464"]
[BlackElo "2139"]
[Annotator "RC"]
[PlyCount "47"]
[EventDate "2024.01.20"]
[EventType "swiss"]
[EventCountry "IND"]
[SourceTitle "playchess.com"]
[Source "ChessBase"]
[SourceQuality "1"]
[TimeControl "5400+30"]

1. d4 {[%emt 0:00:16]} Nf6 {[%emt 0:00:09]} 2. Bf4 {[%emt 0:00:32]} c5 {[%emt 0:01:08]} 3. d5 {[%emt 0:00:29]} b5 {[%emt 0:01:18]} 4. e4 {[%emt 0:00:16]} Nxe4 {[%emt 0:01:56]} 5. Qf3 {[%emt 0:00:32]} Qa5+ {[%emt 0:05:31]} 6. Nd2 {[%emt 0:09:36]} Nf6 {[%emt 0:08:26]} 7. c4 {[%emt 0:09:05]} a6 {[%emt 0:11:36]} 8. Ne2 {[%emt 0:20:25]} d6 {[%emt 0:05:39]} 9. Nc3 {[%emt 0:01:40]} Bg4 {[%emt 0:10:41]} 10. Qe3 {[%emt 0:08:16]} e5 {[%emt 0:06:11]} 11. dxe6 {[%emt 0:18:40]} Nc6 {[%emt 0:05:34]} 12. Be2 {[%emt 0:14:08]} Nd4 {[%emt 0:07:20]} 13. O-O {[%emt 0:02:40]} Nxe2+ {[%emt 0:07:32]} 14. Nxe2 {[%emt 0:00:02]} Bxe6 {[%emt 0:00:18]} 15. Bg5 {[%emt 0:05:18]} Ra7 {[%emt 0:16:08]} 16. Nf4 {[%emt 0:01:16]} Re7 {[%emt 0:01:51]} 17. Ne4 {[%emt 0:02:01]} Nxe4 {[%emt 0:01:37]} 18. Qxe4 {[%emt 0:01:00]} f6 {[%emt 0:04:12]} 19. Nxe6 {[%emt 0:00:26]} fxg5 {[%emt 0:00:12]} 20. Rae1 {[%emt 0:01:02]} h6 {[%emt 0:01:29]} 21. f4 {[%emt 0:00:31]} g4 {[%emt 0:01:06]} 22. f5 {[%emt 0:00:14]} Qd2 {[%emt 0:00:23]} 23. f6 {[%emt 0:00:56]} gxf6 {[%emt 0:00:14]} 24. Rxf6 {[%emt 0:01:48]} 1-0

[Event "1st Bangalore GM-Open-A 2024"]
[Site "Bangalore"]
[Date "2024.01.19"]
[Round "3.36"]
[White "Shyaamnikhil P"]
[Black "Gaurav Rajesh Zagade"]
[Result "1-0"]
[ECO "B50"]
[WhiteElo "2443"]
[BlackElo "2132"]
[Annotator "RC"]
[PlyCount "85"]
[EventDate "2024.01.20"]
[EventType "swiss"]
[EventCountry "IND"]
[SourceTitle "playchess.com"]
[Source "ChessBase"]
[SourceQuality "1"]
[TimeControl "5400+30"]

1. e4 {[%emt 0:00:03]} c5 {[%emt 0:00:11]} 2. Nf3 {[%emt 0:00:31]} Nc6 {[%emt 0:00:11]} 3. Bc4 {[%emt 0:00:34]} g6 {[%emt 0:05:41]} 4. O-O {[%emt 0:01:22]} Bg7 {[%emt 0:00:19]} 5. Re1 {[%emt 0:00:10]} d6 {[%emt 0:05:29]} 6. c3 {[%emt 0:01:25]} Nf6 {[%emt 0:05:16]} 7. Bf1 {[%emt 0:01:35]} O-O {[%emt 0:04:37]} 8. d4 {[%emt 0:00:31]} cxd4 {[%emt 0:04:08]} 9. cxd4 {[%emt 0:00:07]} Bg4 {[%emt 0:01:37]} 10. Nc3 {[%emt 0:07:26]} Bxf3 {[%emt 0:08:02]} 11. gxf3 {[%emt 0:00:11]} e5 {[%emt 0:10:12]} 12. dxe5 {[%emt 0:01:00]} dxe5 {[%emt 0:00:45]} 13. Be3 {[%emt 0:02:11]} Nd4 {[%emt 0:03:09]} 14. Rc1 {[%emt 0:11:17]} Rc8 {[%emt 0:03:15]} 15. Bg2 {[%emt 0:03:14]} Qd7 {[%emt 0:05:49]} 16. f4 {[%emt 0:02:22]} Nh5 {[%emt 0:06:42]} 17. fxe5 {[%emt 0:02:34]} Bxe5 {[%emt 0:00:35]} 18. Nd5 {[%emt 0:00:12]} Rxc1 {[%emt 0:00:43]} 19. Qxc1 {[%emt 0:03:22]} Qg4 {[%emt 0:06:08]} 20. Qd1 {[%emt 0:01:20]} Qxd1 {[%emt 0:01:03]} 21. Rxd1 {[%emt 0:00:11]} Ne6 {[%emt 0:01:45]} 22. Bh3 {[%emt 0:08:20]} Kg7 {[%emt 0:05:36]} 23. Bg4 {[%emt 0:05:27]} Rd8 {[%emt 0:07:39]} 24. Bxh5 {[%emt 0:00:59]} gxh5 {[%emt 0:00:05]} 25. Rd2 {[%emt 0:00:05]} Nc7 {[%emt 0:02:41]} 26. f4 {[%emt 0:01:24]} Bd6 {[%emt 0:00:41]} 27. Nxc7 {[%emt 0:11:13]} Bxc7 {[%emt 0:00:05]} 28. Rxd8 {[%emt 0:00:04]} Bxd8 {[%emt 0:00:03]} 29. Bxa7 {[%emt 0:00:06]} f5 {[%emt 0:01:03]} 30. Kf2 {[%emt 0:01:16]} Kf6 {[%emt 0:01:18]} 31. Ke3 {[%emt 0:00:56]} Ke6 {[%emt 0:00:14]} 32. a4 {[%emt 0:00:40]} Ba5 {[%emt 0:01:05]} 33. Bc5 {[%emt 0:00:25]} Bd8 {[%emt 0:00:47]} 34. b4 {[%emt 0:00:08]} Bf6 {[%emt 0:00:26]} 35. e5 {[%emt 0:00:59]} Bh4 {[%emt 0:00:29]} 36. Kd4 {[%emt 0:00:07]} b6 {[%emt 0:00:24]} 37. Bd6 {[%emt 0:01:10]} Bf2+ {[%emt 0:00:16]} 38. Kd3 {[%emt 0:00:40]} Kd5 {[%emt 0:03:14]} 39. a5 {[%emt 0:01:23]} bxa5 {[%emt 0:01:02]} 40. bxa5 {[%emt 0:00:05]} Kc6 {[%emt 0:00:29]} 41. Bb4 {[%emt 0:00:20]} h4 {[%emt 0:00:14]} 42. h3 {[%emt 0:00:04]} Kd5 {[%emt 0:00:33]} 43. Bd2 {[%emt 0:00:06]} 1-0

[Event "1st Bangalore GM-Open-A 2024"]
[Site "Bangalore"]
[Date "2024.01.19"]
[Round "3.37"]
[White "Mohammad Nubairshah Shaikh"]
[Black "Nagare Kaivalya Sandip"]
[Result "1-0"]
[ECO "A17"]
[WhiteElo "2428"]
[BlackElo "2095"]
[Annotator "RC"]
[PlyCount "101"]
[EventDate "2024.01.20"]
[EventType "swiss"]
[EventCountry "IND"]
[SourceTitle "playchess.com"]
[Source "ChessBase"]
[SourceQuality "1"]
[TimeControl "5400+30"]

1. Nf3 {[%emt 0:08:22]} Nf6 {[%emt 0:06:19]} 2. c4 {[%emt 0:00:05]} e6 {[%emt 0:00:05]} 3. Nc3 {[%emt 0:00:04]} Bb4 {[%emt 0:01:53]} 4. Qc2 {[%emt 0:00:02]} c5 {[%emt 0:00:58]} 5. e3 {[%emt 0:00:13]} O-O {[%emt 0:02:04]} 6. Be2 {[%emt 0:00:14]} Nc6 {[%emt 0:01:33]} 7. a3 {[%emt 0:00:17]} Ba5 {[%emt 0:00:44]} 8. O-O {[%emt 0:00:05]} d6 {[%emt 0:06:15]} 9. Rd1 {[%emt 0:00:41]} Bxc3 {[%emt 0:00:41]} 10. Qxc3 {[%emt 0:01:16]} e5 {[%emt 0:01:55]} 11. d3 {[%emt 0:03:10]} a5 {[%emt 0:00:48]} 12. b3 {[%emt 0:00:09]} Qe7 {[%emt 0:04:50]} 13. Bb2 {[%emt 0:03:41]} Bg4 {[%emt 0:04:16]} 14. h3 {[%emt 0:05:51]} Bh5 {[%emt 0:00:18]} 15. g4 {[%emt 0:14:58]} Bg6 {[%emt 0:00:16]} 16. Nh4 {[%emt 0:00:29]} Nd7 {[%emt 0:17:53]} 17. Nxg6 {[%emt 0:02:46]} fxg6 {[%emt 0:00:05]} 18. Kg2 {[%emt 0:00:48]} Rae8 {[%emt 0:03:40]} 19. Bf3 {[%emt 0:09:13]} Nf6 {[%emt 0:08:08]} 20. Kg1 {[%emt 0:03:07]} h5 {[%emt 0:09:20]} 21. Qc2 {[%emt 0:02:45]} Nd8 {[%emt 0:04:07]} 22. Qe2 {[%emt 0:03:25]} Ne6 {[%emt 0:00:59]} 23. Bg2 {[%emt 0:02:52]} Ng5 {[%emt 0:02:42]} 24. Bc3 {[%emt 0:04:04]} hxg4 {[%emt 0:02:00]} 25. hxg4 {[%emt 0:00:04]} Qd7 {[%emt 0:00:53]} 26. f3 {[%emt 0:00:25]} b6 {[%emt 0:00:55]} 27. b4 {[%emt 0:01:53]} a4 {[%emt 0:02:29]} 28. Rab1 {[%emt 0:00:44]} Ne6 {[%emt 0:04:09]} 29. Qc2 {[%emt 0:05:49]} Ng5 {[%emt 0:01:44]} 30. Qe2 {[%emt 0:02:19]} Ne6 {[%emt 0:00:24]} 31. Ba1 {[%emt 0:06:26]} Nh7 {[%emt 0:05:52]} 32. Qf2 {[%emt 0:04:09]} Nhg5 {[%emt 0:00:36]} 33. Qg3 {[%emt 0:00:57]} Nh7 {[%emt 0:03:17]} 34. Bc3 {[%emt 0:01:38]} g5 {[%emt 0:01:09]} 35. Rb2 {[%emt 0:01:55]} Nf6 {[%emt 0:01:26]} 36. bxc5 {[%emt 0:00:48]} Nxc5 {[%emt 0:01:43]} 37. Rxb6 {[%emt 0:01:16]} Qa7 {[%emt 0:00:56]} 38. Rb5 {[%emt 0:00:57]} Nb3 {[%emt 0:01:00]} 39. Qe1 {[%emt 0:05:25]} d5 {[%emt 0:00:07]} 40. cxd5 {[%emt 0:02:41]} Qa6 {[%emt 0:00:31]} 41. Rb4 {[%emt 0:00:23]} Nxd5 {[%emt 0:00:10]} 42. Re4 {[%emt 0:00:04]} Nc5 {[%emt 0:01:06]} 43. Rxe5 {[%emt 0:00:43]} Nxd3 {[%emt 0:00:11]} 44. Rxg5 {[%emt 0:00:21]} Nxe1 {[%emt 0:01:13]} 45. Rxg7+ {[%emt 0:00:13]} Kh8 {[%emt 0:00:02]} 46. Rxd5 {[%emt 0:00:06]} Rf6 {[%emt 0:00:34]} 47. Rg6 {[%emt 0:00:58]} Kh7 {[%emt 0:00:54]} 48. Rxf6 {[%emt 0:00:15]} Qe2 {[%emt 0:00:20]} 49. Rh5+ {[%emt 0:00:29]} Kg8 {[%emt 0:00:02]} 50. Rg5+ {[%emt 0:00:15]} Kh7 {[%emt 0:00:08]} 51. Rf7+ {[%emt 0:00:06]} 1-0

[Event "1st Bangalore GM-Open-A 2024"]
[Site "Bangalore"]
[Date "2024.01.19"]
[Round "3.38"]
[White "Elgabry, Mohsen"]
[Black "Hesham, Abdelrahman"]
[Result "1/2-1/2"]
[ECO "A01"]
[WhiteElo "2160"]
[BlackElo "2424"]
[Annotator "RC"]
[PlyCount "60"]
[EventDate "2024.01.20"]
[EventType "swiss"]
[EventCountry "IND"]
[SourceTitle "playchess.com"]
[Source "ChessBase"]
[SourceQuality "1"]
[TimeControl "5400+30"]

1. b3 {[%emt 0:00:13]} e5 {[%emt 0:02:41]} 2. Bb2 {[%emt 0:00:12]} Nc6 {[%emt 0:00:04]} 3. e3 {[%emt 0:01:09]} Nf6 {[%emt 0:00:07]} 4. Nf3 {[%emt 0:01:55]} e4 {[%emt 0:01:44]} 5. Nd4 {[%emt 0:02:59]} Nxd4 {[%emt 0:01:40]} 6. Bxd4 {[%emt 0:00:09]} d5 {[%emt 0:00:06]} 7. c4 {[%emt 0:01:54]} c5 {[%emt 0:06:05]} 8. Bxf6 {[%emt 0:00:55]} Qxf6 {[%emt 0:02:19]} 9. Nc3 {[%emt 0:00:08]} d4 {[%emt 0:00:06]} 10. Nd5 {[%emt 0:00:40]} Qe5 {[%emt 0:01:55]} 11. f4 {[%emt 0:06:02]} exf3 {[%emt 0:03:44]} 12. Qxf3 {[%emt 0:04:44]} Bd6 {[%emt 0:01:44]} 13. O-O-O {[%emt 0:06:58]} O-O {[%emt 0:01:47]} 14. e4 {[%emt 0:04:33]} Qe6 {[%emt 0:15:09]} 15. Bd3 {[%emt 0:00:42]} Be5 {[%emt 0:00:06]} 16. h3 {[%emt 0:00:47]} a6 {[%emt 0:00:39]} 17. Kb1 {[%emt 0:04:18]} Bd7 {[%emt 0:03:29]} 18. Rc1 {[%emt 0:00:10]} Qd6 {[%emt 0:02:47]} 19. Qe2 {[%emt 0:01:47]} Rfb8 {[%emt 0:03:55]} 20. Rc2 {[%emt 0:04:12]} b5 {[%emt 0:01:13]} 21. Rf1 {[%emt 0:08:48]} Rb7 {[%emt 0:11:49]} 22. g4 {[%emt 0:02:33]} b4 {[%emt 0:00:41]} 23. Qf3 {[%emt 0:00:45]} Bc6 {[%emt 0:01:08]} 24. Rb2 {[%emt 0:01:13]} a5 {[%emt 0:00:07]} 25. Kc2 {[%emt 0:01:12]} a4 {[%emt 0:00:11]} 26. g5 {[%emt 0:00:34]} Rba7 {[%emt 0:13:50]} 27. h4 {[%emt 0:00:24]} axb3+ {[%emt 0:00:57]} 28. axb3 {[%emt 0:00:07]} Be8 {[%emt 0:00:48]} 29. h5 {[%emt 0:03:23]} Ra2 {[%emt 0:00:07]} 30. Qf5 {[%emt 0:06:32]} Qb8 {[%emt 0:12:25]} 1/2-1/2

[Event "1st Bangalore GM-Open-A 2024"]
[Site "Bangalore"]
[Date "2024.01.19"]
[Round "3.39"]
[White "Kaustuv, Kundu"]
[Black "John Veny Akkarakaran"]
[Result "1-0"]
[ECO "E14"]
[WhiteElo "2423"]
[BlackElo "2112"]
[Annotator "RC"]
[PlyCount "61"]
[EventDate "2024.01.20"]
[EventType "swiss"]
[EventCountry "IND"]
[SourceTitle "playchess.com"]
[Source "ChessBase"]
[SourceQuality "1"]
[TimeControl "5400+30"]

1. Nf3 {[%emt 0:10:33]} Nf6 {[%emt 0:00:08]} 2. c4 {[%emt 0:00:11]} e6 {[%emt 0:00:08]} 3. Nc3 {[%emt 0:00:06]} d5 {[%emt 0:00:17]} 4. e3 {[%emt 0:00:06]} b6 {[%emt 0:02:34]} 5. b3 {[%emt 0:00:09]} Bb7 {[%emt 0:00:44]} 6. Bb2 {[%emt 0:00:06]} Be7 {[%emt 0:08:19]} 7. cxd5 {[%emt 0:04:38]} exd5 {[%emt 0:01:00]} 8. d4 {[%emt 0:00:26]} O-O {[%emt 0:02:01]} 9. Bd3 {[%emt 0:00:07]} c5 {[%emt 0:03:27]} 10. O-O {[%emt 0:01:01]} Nbd7 {[%emt 0:08:41]} 11. Rc1 {[%emt 0:03:46]} a6 {[%emt 0:04:28]} 12. Re1 {[%emt 0:10:35]} Bd6 {[%emt 0:11:31]} 13. Bf5 {[%emt 0:04:59]} cxd4 {[%emt 0:12:43]} 14. Nxd4 {[%emt 0:00:49]} Nc5 {[%emt 0:04:17]} 15. Re2 {[%emt 0:04:14]} Re8 {[%emt 0:01:48]} 16. Rec2 {[%emt 0:04:42]} Qb8 {[%emt 0:07:46]} 17. g3 {[%emt 0:03:24]} Qd8 {[%emt 0:03:29]} 18. Bh3 {[%emt 0:05:56]} g6 {[%emt 0:01:26]} 19. b4 {[%emt 0:01:35]} Ncd7 {[%emt 0:04:25]} 20. b5 {[%emt 0:02:19]} Ne5 {[%emt 0:01:18]} 21. a4 {[%emt 0:06:28]} h5 {[%emt 0:03:57]} 22. Bg2 {[%emt 0:07:47]} a5 {[%emt 0:03:34]} 23. Nc6 {[%emt 0:02:44]} Nxc6 {[%emt 0:02:31]} 24. Nxd5 {[%emt 0:01:06]} Nxd5 {[%emt 0:04:36]} 25. bxc6 {[%emt 0:00:49]} Bxc6 {[%emt 0:04:14]} 26. Rxc6 {[%emt 0:00:21]} Be5 {[%emt 0:00:07]} 27. Bxe5 {[%emt 0:04:59]} Rxe5 {[%emt 0:00:36]} 28. Qd4 {[%emt 0:00:04]} f6 {[%emt 0:03:21]} 29. Rd1 {[%emt 0:00:48]} Ra7 {[%emt 0:00:55]} 30. Bxd5+ {[%emt 0:00:09]} Kg7 {[%emt 0:00:02]} 31. e4 {[%emt 0:00:18]} 1-0

[Event "1st Bangalore GM-Open-A 2024"]
[Site "Bangalore"]
[Date "2024.01.19"]
[Round "3.40"]
[White "Adireddy Arjun"]
[Black "Arun Kataria"]
[Result "1/2-1/2"]
[ECO "C18"]
[WhiteElo "2415"]
[BlackElo "2079"]
[Annotator "RC"]
[PlyCount "114"]
[EventDate "2024.01.20"]
[EventType "swiss"]
[EventCountry "IND"]
[SourceTitle "playchess.com"]
[Source "ChessBase"]
[SourceQuality "1"]
[TimeControl "5400+30"]

1. e4 {[%emt 0:00:38]} e6 {[%emt 0:14:42]} 2. d4 {[%emt 0:00:23]} d5 {[%emt 0:00:28]} 3. Nc3 {[%emt 0:00:12]} Bb4 {[%emt 0:00:37]} 4. e5 {[%emt 0:00:08]} c5 {[%emt 0:00:05]} 5. a3 {[%emt 0:00:06]} Bxc3+ {[%emt 0:00:05]} 6. bxc3 {[%emt 0:00:07]} Ne7 {[%emt 0:00:05]} 7. h4 {[%emt 0:00:33]} Qa5 {[%emt 0:02:38]} 8. Bd2 {[%emt 0:00:12]} Qa4 {[%emt 0:02:41]} 9. Nf3 {[%emt 0:00:30]} Nbc6 {[%emt 0:01:09]} 10. h5 {[%emt 0:00:22]} h6 {[%emt 0:01:52]} 11. Bd3 {[%emt 0:03:18]} c4 {[%emt 0:03:08]} 12. Be2 {[%emt 0:00:18]} Bd7 {[%emt 0:00:09]} 13. Nh4 {[%emt 0:05:07]} O-O-O {[%emt 0:02:05]} 14. f4 {[%emt 0:02:16]} Rdf8 {[%emt 0:02:09]} 15. g4 {[%emt 0:12:40]} f6 {[%emt 0:05:46]} 16. Be3 {[%emt 0:07:53]} Be8 {[%emt 0:05:08]} 17. Kd2 {[%emt 0:03:22]} a6 {[%emt 0:09:13]} 18. Qb1 {[%emt 0:10:39]} fxe5 {[%emt 0:14:47]} 19. fxe5 {[%emt 0:01:10]} g5 {[%emt 0:00:01]} 20. hxg6 {[%emt 0:03:23]} Nxg6 {[%emt 0:00:10]} 21. Nxg6 {[%emt 0:00:36]} Bxg6 {[%emt 0:00:02]} 22. Ra2 {[%emt 0:20:35]} Qa5 {[%emt 0:09:25]} 23. Rxh6 {[%emt 0:09:42]} Rxh6 {[%emt 0:01:58]} 24. Bxh6 {[%emt 0:00:03]} Nxd4 {[%emt 0:12:43]} 25. Qb4 {[%emt 0:02:03]} Qxb4 {[%emt 0:00:01]} 26. axb4 {[%emt 0:00:03]} Rh8 {[%emt 0:00:06]} 27. Bg7 {[%emt 0:00:26]} Rh7 {[%emt 0:00:26]} 28. cxd4 {[%emt 0:04:21]} Rxg7 {[%emt 0:00:01]} 29. Ra3 {[%emt 0:09:26]} Rh7 {[%emt 0:00:36]} 30. Bd1 {[%emt 0:00:58]} Rh2+ {[%emt 0:02:31]} 31. Kc1 {[%emt 0:00:02]} Kd7 {[%emt 0:02:41]} 32. Rg3 {[%emt 0:02:37]} Ke7 {[%emt 0:01:15]} 33. g5 {[%emt 0:02:11]} Rf2 {[%emt 0:04:12]} 34. c3 {[%emt 0:00:38]} b6 {[%emt 0:01:27]} 35. Rh3 {[%emt 0:00:28]} Rg2 {[%emt 0:01:38]} 36. Rh8 {[%emt 0:00:07]} Rg1 {[%emt 0:00:55]} 37. Kd2 {[%emt 0:00:54]} Rxg5 {[%emt 0:00:51]} 38. Rb8 {[%emt 0:00:14]} Rg2+ {[%emt 0:00:33]} 39. Kc1 {[%emt 0:00:04]} b5 {[%emt 0:01:02]} 40. Rb6 {[%emt 0:01:13]} Rg1 {[%emt 0:00:34]} 41. Kd2 {[%emt 0:00:07]} Rg2+ {[%emt 0:00:10]} 42. Kc1 {[%emt 0:00:04]} Rg3 {[%emt 0:00:47]} 43. Kb2 {[%emt 0:00:03]} Rg1 {[%emt 0:00:26]} 44. Bf3 {[%emt 0:00:26]} Rb1+ {[%emt 0:00:33]} 45. Ka2 {[%emt 0:00:01]} Rb3 {[%emt 0:00:35]} 46. Bg4 {[%emt 0:00:15]} Bf7 {[%emt 0:00:17]} 47. Rb7+ {[%emt 0:00:26]} Kf8 {[%emt 0:00:02]} 48. Rb8+ {[%emt 0:00:01]} Kg7 {[%emt 0:00:09]} 49. Rb7 {[%emt 0:00:04]} Kf8 {[%emt 0:00:25]} 50. Rb8+ {[%emt 0:00:02]} Kg7 {[%emt 0:00:01]} 51. Rb7 {[%emt 0:00:01]} Kg6 {[%emt 0:01:11]} 52. Rb6 {[%emt 0:00:02]} Rxc3 {[%emt 0:00:22]} 53. Bxe6 {[%emt 0:00:05]} Bxe6 {[%emt 0:00:04]} 54. Rxe6+ {[%emt 0:00:06]} Kf5 {[%emt 0:01:45]} 55. Rf6+ {[%emt 0:02:47]} Ke4 {[%emt 0:00:07]} 56. e6 {[%emt 0:00:01]} Rc2+ {[%emt 0:00:38]} 57. Ka3 {[%emt 0:00:02]} Re2 {[%emt 0:00:41]} 1/2-1/2

[Event "1st Bangalore GM-Open-A 2024"]
[Site "Bangalore"]
[Date "2024.01.20"]
[Round "4.1"]
[White "Neelash Saha"]
[Black "Short, Nigel D"]
[Result "1-0"]
[ECO "A06"]
[WhiteElo "2446"]
[BlackElo "2592"]
[Annotator "TA"]
[PlyCount "53"]
[EventDate "2024.01.20"]
[EventType "swiss"]
[EventCountry "IND"]
[SourceTitle "playchess.com"]
[Source "ChessBase"]
[SourceQuality "1"]
[TimeControl "5400+30"]

{[%evp 9,53,0,-5,9,50,47,68,64,98,110,127,129,134,130,121,111,158,160,202,183,233,192,206,198,281,276,314,327,337,342,406,424,436,423,532,533,514,508,532,527,562,556,532,496,512,464]} 1. b3 {[%emt 0:00:12]} c5 {[%emt 0:01:29]} 2. Bb2 {[%emt 0:00:42]} Nc6 {[%emt 0:00:38]} 3. Nf3 {[%emt 0:02:34]} d5 {[%emt 0:03:50]} 4. e3 {[%emt 0:00:13][%cal Be2e3,Be3d4,Bd4c5][%mdl 32]} a6 {[%emt 0:00:04]} 5. Be2 {[%emt 0:02:45]} d4 {[%emt 0:01:25]} 6. O-O {[%emt 0:03:34] A06: Réti Opening: 1 Nf3 d5.} g6 {[%emt 0:00:35] [#]} 7. b4 $1 {[%emt 0:06:06][%mdl 64] Deflection} Nxb4 {[%emt 0:23:56]} (7... Nf6 8. bxc5) 8. exd4 {[%emt 0:01:15] White is slightly better.} Bg7 {[%emt 0:08:12][%cal Rc5d4]} 9. c3 {[%emt 0:00:08]} Nd5 {[%emt 0:00:03]} 10. dxc5 {[%emt 0:00:05] [#]} Nh6 $146 {[%emt 0:00:05]} ({Predecessor:} 10... Nf4 11. d4 Nxe2+ 12. Qxe2 Nf6 13. Nbd2 O-O 14. Rfe1 Nd5 15. g3 b6 16. c4 Nb4 17. cxb6 {1-0 Jobava,B (2600)-Gurevich,D (2363) Titled Tuesday intern op 03rd May Early blitz 2022 (1)}) 11. d4 {[%emt 0:05:34]} O-O {[%emt 0:00:14]} 12. Nbd2 {[%emt 0:00:22]} Qc7 {[%emt 0:03:51]} (12... Rb8 $142) 13. Re1 $16 {[%emt 0:00:41]} Bf5 {[%emt 0:03:00]} 14. Bf1 {[%emt 0:02:02]} Rad8 {[%emt 0:00:25]} (14... Rab8 $142 15. c4 Nf4) 15. Nc4 {[%emt 0:01:10]} Rfe8 {[%emt 0:00:55]} 16. Qb3 {[%emt 0:03:03]} Kh8 {[%emt 0:01:02]} (16... Rb8 $142 17. Nce5 Red8) 17. g3 $18 {[%emt 0:03:43]} f6 {[%emt 0:03:11]} 18. Bg2 {[%emt 0:01:42]} g5 {[%emt 0:00:39]} 19. Nfd2 {[%emt 0:06:13]} Bc8 {[%emt 0:01:40]} 20. Ba3 {[%emt 0:04:42]} Nf5 {[%emt 0:00:24] White is clearly winning.} 21. Rab1 {[%emt 0:07:06]} Bh6 {[%emt 0:01:16]} 22. Bxd5 {[%emt 0:04:51]} Rxd5 {[%emt 0:00:07]} 23. Nb6 {[%emt 0:00:59]} Rdd8 {[%emt 0:00:10]} 24. Nxc8 {[%emt 0:00:07]} Rxc8 {[%emt 0:00:03]} 25. Qxb7 {[%emt 0:00:48]} Qa5 {[%emt 0:00:04]} 26. Qb4 {[%emt 0:00:39]} Qd8 {[%emt 0:00:04]} 27. Qb6 {[%emt 0:00:29] Black did not feel at home in the position after the opening.   Weighted Error Value: White=0.05 (flawless) /Black=0.29 (precise)} 1-0